bitfinex-derivatives/quotes_ETHF0:USTF0_20240923
["timestamp","ask_amount","ask_price","bid_price","bid_amount"]
[1727095898191,3.58585,2645.5,2645.4,0.3893]
[1727095898791,3.58585,2645.5,2645.4,0.76737]
[1727095899700,4.53099,2645.5,2645.4,0.3893]
[1727095900005,9.25613,2645.5,2645.4,0.3893]
[1727095901497,4.53099,2645.5,2645.4,0.3893]
[1727095901693,1.32319,2645.5,2645.4,0.3893]
[1727095903906,0.37805,2645.5,2645.4,0.3893]
[1727095904299,0.37805,2645.5,2645.4,0.76737]
[1727095904499,0.37805,2645.5,2645.4,0.3893]
[1727095906100,1.32319,2645.5,2645.4,0.3893]
[1727095906301,2.27319,2645.5,2645.4,0.3893]
[1727095906603,10.20613,2645.5,2645.4,0.3893]
[1727095908312,10.20613,2645.5,2645.0,3.2078]
[1727095908313,1.32339,2645.1,2645.0,3.2078]
[1727095908509,5.2778,2645.1,2644.9,0.37813]
[1727095908700,2.44811,2645.1,2645.0,0.74712]
[1727095908912,0.37811,2645.1,2645.0,0.369]
[1727095909209,3.39339,2645.1,2645.0,0.369]
[1727095909710,0.37814,2644.9,2644.8,0.721]
[1727095910008,2.44814,2644.9,2644.8,0.721]
[1727095911217,6.79615,2644.9,2644.4,0.369]
[1727095911515,3.2078,2644.8,2644.6,0.3777]
[1727095911707,0.37817,2644.7,2644.6,0.3777]
[1727095912412,0.3782,2644.5,2644.4,0.369]
[1727095912620,5.656,2644.5,2644.4,0.369]
[1727095912808,2.07,2644.5,2644.4,0.369]
[1727095913008,2.4482,2644.5,2644.4,0.369]
[1727095913913,2.07,2644.5,2644.1,0.373]
[1727095914113,2.07,2644.5,2644.2,0.3632]
[1727095914717,2.4482,2644.5,2644.2,0.3632]
[1727095914927,0.37821,2644.4,2644.2,0.3632]
[1727095915330,2.4482,2644.5,2644.2,0.3632]
[1727095915630,0.37821,2644.4,2644.2,0.3632]
[1727095916028,2.84551,2644.5,2644.2,0.3632]
[1727095916225,2.4673,2644.5,2644.2,0.3632]
[1727095916425,5.2778,2645.0,2644.2,7.3526]
[1727095916631,0.37815,2644.9,2644.2,3.571]
[1727095916828,2.44815,2644.8,2644.4,0.3782]
[1727095917016,0.37814,2644.9,2644.5,0.3619]
[1727095917222,2.44813,2645.0,2644.6,0.3619]
[1727095917415,0.37814,2644.9,2644.6,0.736]
[1727095917621,2.07,2645.0,2644.6,0.736]
[1727095917831,2.07,2645.0,2644.6,1.11417]
[1727095918030,2.07,2645.0,2644.6,4.32197]
[1727095918230,3.2078,2644.7,2644.5,0.3619]
[1727095918531,5.65598,2644.7,2644.6,0.736]
[1727095919626,5.2778,2644.7,2644.6,0.3619]
[1727095919826,5.65597,2644.7,2644.6,0.3619]
[1727095920020,6.02057,2644.7,2644.6,0.3619]
[1727095920728,0.37818,2644.6,2644.5,0.3619]
[1727095920926,0.37822,2644.3,2644.2,0.7844]
[1727095921126,2.07,2644.3,2644.2,0.7844]
[1727095921725,0.37827,2644.0,2643.5,0.46633]
[1727095922031,0.37827,2644.0,2643.9,0.3981]
[1727095922228,3.58607,2644.0,2643.9,0.3981]
[1727095922836,3.58607,2644.0,2643.3,3.2078]
[1727095923031,3.58607,2644.0,2643.4,0.7508]
[1727095923032,3.2078,2644.0,2643.4,0.7508]
[1727095923224,2.44834,2643.5,2643.4,0.39]
[1727095923422,6.10334,2643.5,2643.4,0.39]
[1727095923621,9.88654,2643.5,2643.4,0.39]
[1727095923824,10.25334,2643.5,2643.4,0.39]
[1727095924823,2.07,2643.5,2643.4,0.39]
[1727095925432,3.2078,2643.6,2643.4,0.39]
[1727095925732,3.2078,2643.6,2643.5,0.3712]
[1727095926130,3.2078,2643.6,2643.5,0.7605]
[1727095926328,3.2078,2643.6,2643.5,1.13884]
[1727095926525,2.07,2643.9,2643.5,0.7605]
[1727095926729,2.07,2643.9,2643.5,1.13884]
[1727095926730,0.3783,2643.8,2643.5,1.13884]
[1727095927932,2.07,2643.7,2643.5,0.7605]
[1727095928136,2.44832,2643.7,2643.5,0.7605]
[1727095928534,2.44832,2643.7,2643.5,1.13884]
[1727095928730,2.07,2643.7,2643.5,1.13884]
[1727095929125,3.58602,2644.4,2643.7,0.94578]
[1727095929331,3.592,2644.7,2644.1,3.2078]
[1727095929628,3.2078,2644.7,2644.6,0.37818]
[1727095929834,3.2078,2644.7,2644.5,0.37818]
[1727095930031,2.44816,2644.8,2644.6,0.37818]
[1727095930225,2.44816,2644.8,2644.5,3.2078]
[1727095930427,2.07,2644.8,2644.5,3.2078]
[1727095930934,2.07,2644.8,2644.6,0.37818]
[1727095931236,2.44815,2644.8,2644.5,3.2078]
[1727095931534,0.37817,2644.7,2644.5,3.2078]
[1727095931832,2.07,2644.6,2644.4,0.3782]
[1727095932134,2.44819,2644.6,2644.3,0.37821]
[1727095932336,2.44819,2644.6,2644.4,0.37821]
[1727095933034,2.44818,2644.6,2644.4,0.37821]
[1727095933734,2.44819,2644.6,2644.3,0.37822]
[1727095933928,2.44819,2644.6,2644.4,0.3782]
[1727095934123,0.3782,2644.5,2644.3,0.37822]
[1727095934338,0.3782,2644.5,2644.2,1.151]
[1727095934541,0.3782,2644.5,2644.3,0.37821]
[1727095935431,2.07,2644.4,2644.2,1.151]
[1727095935938,0.37822,2644.3,2644.2,1.151]
[1727095936238,0.37822,2644.3,2644.2,0.7724]
[1727095938841,4.15982,2644.3,2644.2,0.3781]
[1727095939136,4.15982,2644.3,2643.8,0.3741]
[1727095939137,0.37828,2643.9,2643.8,0.3741]
[1727095939338,2.44828,2643.9,2643.8,0.3741]
[1727095939941,2.44828,2643.9,2643.6,0.3788]
[1727095939942,0.37831,2643.7,2643.6,0.3788]
[1727095940142,2.07,2643.7,2643.6,0.75712]
[1727095941051,2.44831,2643.7,2643.6,0.75712]
[1727095941339,2.44831,2643.7,2643.6,0.3788]
[1727095942233,3.39409,2643.7,2643.6,0.3788]
[1727095945142,2.07,2643.7,2643.6,0.75712]
[1727095945545,2.44831,2643.7,2643.6,0.3788]
[1727095946146,2.07,2643.7,2643.6,0.75712]
[1727095946853,2.44831,2643.7,2643.6,0.3788]
[1727095947046,2.44831,2643.7,2643.6,0.75712]
[1727095947345,2.44831,2643.7,2643.6,0.3788]
[1727095947648,2.44831,2643.7,2643.6,0.75712]
[1727095947947,2.44831,2643.7,2643.6,0.3788]
[1727095948663,2.44831,2643.7,2643.6,0.75712]
[1727095949145,2.44831,2643.7,2643.6,0.3788]
[1727095949339,2.07,2643.7,2643.6,0.75712]
[1727095950345,2.44831,2643.7,2643.6,0.75712]
[1727095951249,2.07,2643.7,2643.6,0.75712]
[1727095951548,0.37838,2643.3,2643.2,0.37837]
[1727095951857,0.37838,2643.3,2643.0,3.2078]
[1727095951858,2.07,2643.5,2643.3,0.37836]
[1727095952047,0.37836,2643.4,2643.3,0.37836]
[1727095952441,2.44835,2643.5,2643.4,0.37835]
[1727095953140,2.44834,2643.5,2643.4,0.37835]
[1727095953348,2.07,2643.5,2643.4,0.37835]
[1727095953658,0.37833,2643.6,2643.5,0.37834]
[1727095954246,0.37833,2643.6,2643.2,1.34275]
[1727095954247,2.07,2643.7,2643.6,0.37832]
[1727095954657,5.2778,2644.1,2643.9,0.37828]
[1727095954852,2.07,2644.1,2644.0,0.37827]
[1727095955152,0.37822,2644.3,2644.2,0.37823]
[1727095955457,2.07,2644.4,2644.3,0.37822]
[1727095955458,2.44822,2644.4,2644.3,0.37822]
[1727095955664,2.07,2644.4,2644.3,0.37822]
[1727095955952,2.44821,2644.4,2644.3,0.37822]
[1727095956146,2.07,2644.4,2644.3,0.37822]
[1727095956342,2.07,2644.4,2644.3,0.75682]
[1727095956951,2.44821,2644.4,2644.3,0.75682]
[1727095958754,2.44821,2644.4,2644.3,0.3786]
[1727095960251,3.39374,2644.4,2644.3,0.3786]
[1727095960853,2.44821,2644.4,2644.3,0.75682]
[1727095961057,2.44821,2644.4,2644.3,0.3786]
[1727095961262,0.37821,2644.4,2644.3,0.75682]
[1727095961451,5.2778,2644.6,2644.3,4.1602]
[1727095961758,5.2778,2644.6,2644.5,0.3782]
[1727095962154,2.07,2644.9,2644.8,0.37815]
[1727095962549,2.44814,2644.9,2644.8,0.37815]
[1727095963751,0.37815,2644.8,2644.7,0.3643]
[1727095965750,2.07,2644.9,2644.7,0.3643]
[1727095965946,2.44814,2644.9,2644.8,0.76245]
[1727095966157,2.44814,2644.9,2644.8,0.3843]
[1727095966360,3.39349,2644.9,2644.8,0.3843]
[1727095967257,1.32354,2644.8,2644.7,0.3643]
[1727095967464,0.37815,2644.8,2644.7,0.3643]
[1727095968360,0.37815,2644.8,2644.7,0.74247]
[1727095968664,0.37815,2644.8,2644.7,0.3643]
[1727095968957,1.32354,2644.8,2644.7,0.3643]
[1727095969551,0.3782,2644.5,2644.4,0.3843]
[1727095970154,0.7506,2644.5,2644.4,0.3843]
[1727095971562,0.37821,2644.4,2644.3,0.3749]
[1727095971757,5.65601,2644.4,2644.3,0.3749]
[1727095971960,2.07,2644.4,2644.3,0.3749]
[1727095972262,2.44821,2644.4,2644.3,0.3749]
[1727095977057,0.37824,2644.2,2644.1,0.385]
[1727095977467,1.32384,2644.2,2644.1,0.385]
[1727095977874,0.37824,2644.2,2644.1,0.385]
[1727095980266,0.37823,2644.3,2644.2,0.37824]
[1727095980472,0.37823,2644.3,2644.2,0.3644]
[1727095981770,2.07,2644.4,2644.2,0.3644]
[1727095982071,2.07,2644.6,2644.5,0.3782]
[1727095983368,2.44816,2644.8,2644.3,1.30766]
[1727095983575,2.44816,2644.8,2644.6,0.37817]
[1727095983765,2.44815,2644.8,2644.7,0.7605]
[1727095984068,2.07,2644.8,2644.7,1.13867]
[1727095984464,0.94521,2645.4,2644.7,0.7605]
[1727095984661,0.94521,2645.4,2645.0,0.37812]
[1727095984662,2.07,2645.1,2645.0,0.37812]
[1727095984869,0.77007,2645.4,2644.8,0.3756]
[1727095984870,2.07,2645.3,2645.2,0.37809]
[1727095985373,2.07,2645.3,2645.1,0.3781]
[1727095985561,2.44808,2645.3,2645.2,0.7605]
[1727095985962,2.07,2645.3,2645.2,1.13859]
[1727095986183,2.07,2645.3,2645.2,0.7605]
[1727095986563,2.07,2645.3,2645.2,1.13859]
[1727095986767,2.44808,2645.3,2645.2,0.7605]
[1727095987265,2.07,2645.3,2645.2,1.13859]
[1727095987967,2.07,2645.3,2645.2,0.7605]
[1727095987968,2.44808,2645.3,2645.2,0.7605]
[1727095988871,2.07,2645.3,2644.9,0.37813]
[1727095989073,2.44812,2645.0,2644.9,0.3773]
[1727095989270,2.07,2645.0,2644.9,0.75544]
[1727095989961,2.44809,2645.2,2645.1,0.37811]
[1727095990166,2.07,2645.2,2645.1,0.37811]
[1727095991168,2.44809,2645.2,2645.1,0.37811]
[1727095991763,2.4481,2645.2,2645.1,0.37811]
[1727095992162,2.07,2645.2,2645.1,0.37811]
[1727095993074,2.44809,2645.2,2645.1,0.37811]
[1727095993378,2.07,2645.2,2645.1,0.37811]
[1727095994265,2.44809,2645.2,2645.1,0.37811]
[1727095994871,2.07,2645.2,2645.1,0.37811]
[1727095995468,0.37812,2645.0,2644.9,0.3773]
[1727095995778,2.07,2645.0,2644.9,0.75544]
[1727095996578,2.44812,2645.0,2644.9,0.75544]
[1727095997574,2.44812,2645.0,2644.9,0.3773]
[1727095998077,2.44812,2645.0,2644.9,0.75544]
[1727095998679,2.44812,2645.0,2644.9,0.3773]
[1727096001080,0.37812,2645.1,2645.0,0.37812]
[1727096002175,2.4595,2645.2,2644.9,0.75543]
[1727096002176,0.37812,2645.0,2644.9,0.75543]
[1727096002496,0.37812,2645.1,2645.0,0.37812]
[1727096002975,2.07,2645.2,2645.1,0.37811]
[1727096003175,7.84089,2645.7,2645.3,0.37808]
[1727096003176,2.44807,2645.4,2645.3,0.37808]
[1727096003372,2.07,2645.4,2645.3,0.37808]
[1727096004582,7.14202,2645.9,2645.3,4.72521]
[1727096004784,7.14202,2645.9,2645.7,0.37802]
[1727096004785,0.37801,2645.8,2645.7,0.37802]
[1727096004987,2.07,2645.9,2645.4,1.0855]
[1727096004988,2.448,2645.9,2645.8,0.37801]
[1727096005189,0.37802,2645.8,2645.7,0.37802]
[1727096005594,2.07,2645.9,2645.6,0.37803]
[1727096005783,0.37801,2645.8,2645.6,0.37803]
[1727096005985,0.37802,2645.7,2645.6,0.37803]
[1727096006390,2.448,2645.9,2645.8,0.37801]
[1727096006689,2.44801,2645.9,2645.7,0.37802]
[1727096006993,2.44801,2645.9,2645.8,0.37801]
[1727096006994,2.07,2645.9,2645.8,0.37801]
[1727096007186,0.3721,2646.0,2645.5,0.94513]
[1727096007384,0.378,2645.9,2645.8,0.378]
[1727096007591,0.37799,2646.0,2645.8,0.378]
[1727096007890,0.37799,2646.0,2645.9,0.77009]
[1727096009096,0.37798,2646.0,2645.9,0.3921]
[1727096009300,2.44797,2646.1,2645.9,0.3921]
[1727096009501,2.44797,2646.1,2645.9,0.77009]
[1727096009707,0.37798,2646.0,2645.9,0.77009]
[1727096010405,2.44798,2646.1,2645.9,0.77009]
[1727096010604,0.37798,2646.0,2645.9,0.77009]
[1727096011198,2.07,2646.1,2645.9,0.77009]
[1727096011199,2.44797,2646.1,2645.9,0.77009]
[1727096011397,2.44797,2646.1,2645.9,0.3921]
[1727096011600,0.37798,2646.0,2645.9,0.77009]
[1727096013104,0.37798,2646.0,2645.9,0.3921]
[1727096014507,0.37798,2646.0,2645.9,0.77009]
[1727096014898,2.44798,2646.1,2646.0,0.37798]
[1727096015097,2.44798,2646.1,2646.0,0.76578]
[1727096015306,2.44798,2646.1,2646.0,1.13168]
[1727096015510,2.44798,2646.1,2646.0,0.7537]
[1727096015901,0.392,2646.3,2646.2,0.37795]
[1727096016107,2.44791,2646.6,2646.1,0.94492]
[1727096016302,0.3946,2646.8,2646.7,0.37788]
[1727096016610,4.127,2646.9,2646.8,0.37787]
[1727096016914,0.77242,2647.2,2647.0,0.37783]
[1727096017100,0.77242,2647.2,2647.1,0.388]
[1727096017305,0.83455981,2647.2,2647.1,0.388]
[1727096017607,0.83455981,2647.2,2647.1,0.76582]
[1727096017608,0.3946,2647.2,2647.1,0.76582]
[1727096017817,2.07,2647.3,2647.1,0.76582]
[1727096018317,0.37778,2647.4,2647.1,0.76582]
[1727096018508,2.4646,2647.5,2647.1,0.388]
[1727096018708,2.4646,2647.5,2647.1,0.76582]
[1727096018709,0.37779,2647.4,2647.1,0.76582]
[1727096018905,2.84237,2647.5,2647.1,0.76581]
[1727096019117,2.4646,2647.5,2647.2,0.3793]
[1727096019302,0.37779,2647.4,2647.2,0.3793]
[1727096019502,2.4646,2647.5,2647.2,0.3793]
[1727096019811,0.3778,2647.3,2647.2,0.3793]
[1727096020202,0.37779,2647.4,2647.2,0.3793]
[1727096020615,5.6724,2647.5,2647.2,0.7571]
[1727096021117,5.2778,2647.5,2647.2,1.154]
[1727096021314,3.2078,2647.5,2647.2,1.154]
[1727096021517,3.2078,2647.8,2647.3,3.7776]
[1727096021707,0.3734,2647.9,2647.2,0.7762]
[1727096021708,0.75112,2647.9,2647.2,0.7762]
[1727096021910,0.75112,2647.9,2647.6,0.37775]
[1727096021911,0.3734,2647.9,2647.6,0.37775]
[1727096022111,2.07,2648.1,2647.8,0.37771]
[1727096022316,2.4477,2648.1,2647.8,0.37772]
[1727096022617,2.4477,2648.1,2647.8,0.7445]
[1727096022916,0.3777,2648.0,2647.8,0.7445]
[1727096023512,2.44771,2647.9,2647.8,0.3601]
[1727096023913,2.07,2647.9,2647.8,0.3601]
[1727096024117,2.44771,2647.9,2647.8,0.3601]
[1727096024416,0.37769,2648.1,2647.8,0.3601]
[1727096024718,0.37769,2648.1,2647.8,0.37772]
[1727096024914,0.37771,2648.0,2647.7,0.3639]
[1727096025414,0.37771,2647.9,2647.7,0.3639]
[1727096026019,0.37772,2647.8,2647.7,0.3639]
[1727096026409,0.37772,2647.9,2647.7,0.3639]
[1727096026604,0.37772,2647.8,2647.7,0.3639]
[1727096026813,2.07,2648.0,2647.7,0.3639]
[1727096027010,0.37772,2647.8,2647.7,0.3639]
[1727096028918,2.44772,2647.8,2647.7,0.3639]
[1727096029319,0.37772,2647.8,2647.7,0.3639]
[1727096030214,0.77062,2647.8,2647.7,0.3639]
[1727096031720,0.3929,2647.8,2647.3,3.58559]
[1727096031919,0.37777,2647.5,2647.4,0.3656]
[1727096034112,0.3929,2647.8,2647.4,0.3656]
[1727096034113,0.37774,2647.8,2647.4,0.3656]
[1727096034316,0.37774,2647.8,2647.6,0.37775]
[1727096035013,0.37774,2647.7,2647.6,0.37775]
[1727096035219,3.01428,2647.9,2647.4,0.3656]
[1727096035423,0.37777,2647.5,2647.4,0.3656]
[1727096035918,3.01437,2647.7,2647.4,0.3656]
[1727096036113,6.22217,2647.7,2647.4,0.3656]
[1727096036317,0.37777,2647.5,2647.4,0.3656]
[1727096036711,0.37777,2647.5,2647.4,0.74338]
[1727096036915,0.37776,2647.6,2647.4,0.3656]
[1727096037114,0.37776,2647.6,2647.5,0.37777]
[1727096037623,0.37774,2647.7,2647.5,0.37777]
[1727096037809,3.0143,2647.9,2647.6,0.37775]
[1727096038007,0.37775,2647.7,2647.5,0.37776]
[1727096039118,0.37775,2647.6,2647.5,0.37776]
[1727096040522,0.37777,2647.5,2647.4,0.74338]
[1727096040719,3.39219,2647.5,2647.4,0.3656]
[1727096041020,0.37784,2647.0,2646.9,0.37784]
[1727096041221,0.37784,2647.0,2646.9,0.376]
[1727096041616,6.60024,2647.0,2646.9,0.376]
[1727096041812,5.65564,2647.0,2646.9,0.376]
[1727096042219,2.44784,2647.0,2646.9,0.376]
[1727096043019,3.78344,2647.0,2646.9,0.376]
[1727096043225,6.99124,2647.0,2646.9,0.376]
[1727096043827,6.04664,2647.0,2646.9,0.376]
[1727096044718,6.99124,2647.0,2646.9,0.376]
[1727096044925,0.37787,2646.8,2646.7,0.392]
[1727096045230,0.37788,2646.7,2646.6,0.3618]
[1727096045926,3.7784,2646.7,2646.2,3.2078]
[1727096046122,3.7784,2646.7,2646.3,0.3618]
[1727096046123,2.44792,2646.5,2646.3,0.3618]
[1727096046626,0.37792,2646.4,2646.3,0.3618]
[1727096047228,2.44792,2646.5,2646.3,0.3618]
[1727096047929,0.37792,2646.4,2646.3,0.3618]
[1727096049832,0.77342,2646.4,2646.3,0.3618]
[1727096053725,8.70444,2646.4,2646.3,0.3618]
[1727096053929,0.37797,2646.1,2646.0,0.7873]
[1727096054133,0.37797,2646.1,2646.0,1.1665]
[1727096054425,0.37797,2646.1,2646.0,0.3792]
[1727096054426,1.32289,2646.1,2646.0,0.3792]
[1727096055019,0.37797,2646.1,2646.0,0.3792]
[1727096056720,2.44796,2646.2,2646.0,0.75718]
[1727096056935,6.61812,2646.4,2646.1,0.37797]
[1727096057228,6.61812,2646.4,2646.0,0.75717]
[1727096057229,0.37796,2646.2,2646.0,0.75717]
[1727096058244,0.37797,2646.1,2646.0,0.75717]
[1727096058732,0.37797,2646.1,2646.0,4.53637]
[1727096059132,0.37797,2646.1,2646.0,0.75717]
[1727096059329,0.37797,2646.1,2646.0,4.53637]
[1727096060131,0.37797,2646.1,2646.0,0.75717]
[1727096060328,1.32289,2646.1,2646.0,0.3792]
[1727096063532,4.53069,2646.1,2646.0,0.3792]
[1727096066436,3.58577,2646.1,2646.0,0.3792]
[1727096066632,0.37796,2646.2,2646.1,0.37796]
[1727096067742,0.76245,2646.3,2646.2,0.37795]
[1727096067930,3.58574,2646.4,2646.3,0.37794]
[1727096068334,3.58574,2646.4,2646.0,0.3792]
[1727096068536,0.37795,2646.3,2646.2,0.37794]
[1727096069237,3.58574,2646.4,2646.3,0.37794]
[1727096069238,3.58573,2646.4,2646.3,0.37794]
[1727096069833,0.37791,2646.6,2646.5,0.3779]
[1727096070438,0.37792,2646.5,2646.4,0.37792]
[1727096072539,0.37792,2646.5,2646.3,0.3961]
[1727096072540,0.3779,2646.6,2646.5,0.37789]
[1727096073635,5.2778,2646.7,2646.6,0.37789]
[1727096073636,3.58569,2646.7,2646.6,0.37789]
[1727096073946,3.2078,2646.7,2646.6,0.37789]
[1727096074442,3.2078,2646.7,2646.6,0.74649]
[1727096074636,3.58568,2646.7,2646.6,0.74649]
[1727096075238,3.2078,2646.7,2646.6,0.74649]
[1727096076842,3.2078,2646.7,2646.6,1.69123]
[1727096077338,2.6102,2646.7,2646.6,5.46963]
[1727096077533,2.44785,2647.0,2646.9,0.37785]
[1727096078649,0.37786,2646.9,2646.8,0.37785]
[1727096078943,0.37787,2646.8,2646.6,0.3686]
[1727096079142,0.37788,2646.7,2646.6,0.3686]
[1727096079348,1.32259,2646.7,2646.6,0.3686]
[1727096079937,0.37788,2646.7,2646.6,0.74649]
[1727096080534,0.37788,2646.7,2646.6,1.10999]
[1727096082148,0.37788,2646.7,2646.6,0.7321]
[1727096082349,0.37789,2646.6,2646.5,0.3658]
[1727096082549,3.39263,2646.6,2646.5,0.3658]
[1727096083253,2.44789,2646.6,2646.5,0.74371]
[1727096083939,2.44789,2646.6,2646.5,0.3658]
[1727096084546,2.44789,2646.6,2646.5,0.74371]
[1727096084753,3.39263,2646.6,2646.5,0.3658]
[1727096086739,0.37794,2646.3,2646.2,4.31695]
[1727096087139,0.37793,2646.4,2646.3,0.37793]
[1727096088045,0.37793,2646.4,2646.3,0.73983]
[1727096088552,0.37792,2646.5,2646.4,0.37792]
[1727096090255,0.9447,2646.8,2646.3,0.3619]
[1727096090545,0.37789,2646.7,2646.6,0.37788]
[1727096092047,0.37791,2646.6,2646.5,0.3779]
[1727096092246,0.37792,2646.5,2646.4,0.37791]
[1727096093451,0.37792,2646.5,2646.3,0.3619]
[1727096093452,2.4479,2646.6,2646.5,0.37791]
[1727096096650,0.37789,2646.8,2646.7,0.37787]
[1727096097454,0.37789,2646.8,2646.7,0.74477]
[1727096097654,0.37784,2647.1,2647.0,0.37783]
[1727096098251,2.44784,2647.1,2647.0,0.37783]
[1727096098450,2.44784,2647.1,2646.7,1.3116]
[1727096098451,0.37785,2647.0,2646.9,0.37784]
[1727096101056,0.37785,2647.0,2646.9,0.37785]
[1727096101262,3.0146,2647.1,2646.8,0.3798]
[1727096101263,0.37784,2647.1,2647.0,0.37784]
[1727096101755,0.37782,2647.2,2647.1,0.37781]
[1727096102860,0.37782,2647.2,2646.8,0.3798]
[1727096102861,0.94457,2647.1,2646.8,0.3798]
[1727096103048,3.39249,2646.9,2646.8,0.3798]
[1727096103251,0.37792,2646.4,2646.3,0.37793]
[1727096103455,2.07,2646.4,2646.3,0.76373]
[1727096103849,2.07,2646.4,2646.3,0.3858]
[1727096104054,0.37794,2646.3,2646.2,3.2078]
[1727096104251,0.37796,2646.2,2646.0,0.3858]
[1727096104460,2.07,2646.1,2646.0,0.3858]
[1727096105156,2.07,2646.1,2646.0,0.76378]
[1727096106460,2.44797,2646.1,2646.0,0.3858]
[1727096107051,2.44797,2646.1,2645.7,0.3857]
[1727096107052,0.378,2645.9,2645.7,0.3857]
[1727096107259,2.07,2645.9,2645.5,0.3658]
[1727096107462,2.448,2645.9,2645.5,0.7515]
[1727096107765,2.439,2645.9,2645.5,0.7515]
[1727096107965,0.369,2645.9,2645.5,0.7515]
[1727096108165,0.369,2646.2,2645.6,0.9451]
[1727096108458,0.3636,2646.5,2646.0,0.37797]
[1727096108459,2.439,2646.5,2646.0,0.37797]
[1727096108664,2.07,2646.3,2645.5,0.7515]
[1727096108859,0.37797,2646.1,2645.9,0.37798]
[1727096109162,2.07,2646.3,2645.5,0.7515]
[1727096109564,0.37796,2646.2,2645.9,0.37798]
[1727096109766,0.37796,2646.2,2646.0,0.74268]
[1727096110065,0.37797,2646.1,2646.0,0.3647]
[1727096110265,0.74697,2646.1,2646.0,0.3647]
[1727096110963,0.378,2645.9,2645.7,0.37802]
[1727096112670,0.378,2645.9,2645.6,0.3672]
[1727096112671,0.37801,2645.8,2645.6,0.74523]
[1727096112867,2.07,2645.8,2645.5,0.3658]
[1727096113167,4.15276,2646.0,2645.5,0.3658]
[1727096113168,2.44804,2645.6,2645.5,0.3658]
[1727096113357,2.07,2645.6,2645.5,0.74385]
[1727096113557,0.75633,2645.7,2645.5,0.74385]
[1727096113758,0.75633,2645.7,2645.6,0.37804]
[1727096113965,3.2078,2646.0,2645.5,0.3658]
[1727096114270,0.378,2645.9,2645.7,0.37801]
[1727096114461,0.378,2645.9,2645.8,0.37801]
[1727096114966,3.2078,2646.0,2645.5,0.3658]
[1727096115162,2.4638,2646.1,2645.5,0.3658]
[1727096115163,0.3938,2646.1,2645.5,0.3658]
[1727096115464,0.378,2645.9,2645.8,0.37801]
[1727096118767,0.37799,2646.0,2645.8,0.37801]
[1727096118975,0.3938,2646.1,2645.9,0.37799]
[1727096119266,0.378,2645.9,2645.8,0.37801]
[1727096120573,0.37799,2646.0,2645.9,0.37799]
[1727096121470,0.37799,2646.0,2645.7,0.3914]
[1727096121471,2.4638,2646.1,2645.8,0.3834]
[1727096121773,2.4638,2646.1,2645.8,0.7614]
[1727096121774,0.37799,2645.9,2645.8,0.7614]
[1727096122362,0.37799,2645.9,2645.8,0.378]
[1727096122570,0.37799,2646.0,2645.9,0.37799]
[1727096123778,0.37801,2645.9,2645.8,0.378]
[1727096124074,0.37799,2646.0,2645.9,0.37798]
[1727096124578,2.84178,2646.1,2646.0,0.37798]
[1727096124776,0.77178,2646.1,2646.0,0.37798]
[1727096125375,0.37793,2646.4,2646.3,0.37792]
[1727096125573,0.37792,2646.5,2646.4,0.37791]
[1727096126581,0.37791,2646.6,2646.5,0.3779]
[1727096127287,1.31721,2646.7,2646.4,0.37791]
[1727096127288,0.37792,2646.5,2646.4,0.37791]
[1727096128085,0.3779,2646.6,2646.5,0.3779]
[1727096129778,0.75039,2646.7,2646.6,0.37789]
[1727096130084,2.44788,2646.8,2646.7,0.37788]
[1727096130286,0.37789,2646.7,2646.6,0.37788]
[1727096130990,0.37789,2646.7,2646.6,0.76728]
[1727096134985,3.58569,2646.7,2646.6,0.3894]
[1727096135286,3.58569,2646.7,2646.3,3.2078]
[1727096135287,0.37792,2646.4,2646.3,3.58572]
[1727096135581,1.32274,2646.4,2646.3,0.3901]
[1727096135785,0.37792,2646.4,2646.3,0.3901]
[1727096137590,0.37792,2646.4,2646.3,0.76804]
[1727096138583,0.76982,2646.5,2646.4,0.37792]
[1727096138786,0.76982,2646.5,2646.3,0.3901]
[1727096138787,0.3779,2646.6,2646.5,0.3779]
[1727096139385,3.2078,2646.7,2646.6,0.37789]
[1727096139691,3.2078,2646.7,2646.3,1.33495]
[1727096139890,2.07,2646.6,2646.3,0.3901]
[1727096140085,2.07,2646.6,2646.3,0.76802]
[1727096140086,0.37792,2646.4,2646.3,0.76802]
[1727096140284,0.37792,2646.4,2646.3,0.3901]
[1727096140487,2.44792,2646.4,2646.3,0.3901]
[1727096140690,2.44792,2646.4,2646.3,0.76804]
[1727096140895,2.44792,2646.4,2646.3,0.3901]
[1727096144285,3.39274,2646.4,2646.3,0.3901]
[1727096144696,0.37799,2646.0,2645.8,3.2078]
[1727096144885,0.37799,2646.0,2645.6,0.94508]
[1727096144886,0.37799,2646.0,2645.7,1.1522]
[1727096145080,0.37799,2646.0,2645.9,0.37799]
[1727096145688,0.73918,2646.1,2646.0,0.37798]
[1727096145989,0.37798,2646.1,2646.0,0.37798]
[1727096146489,0.37799,2646.0,2645.9,0.37798]
[1727096146883,5.8492,2646.0,2645.7,1.1522]
[1727096147085,0.37801,2645.9,2645.8,0.378]
[1727096149895,0.37801,2645.9,2645.7,1.1522]